bitfinex/quotes_BTCUSD_20240915
["timestamp","ask_amount","ask_price","bid_price","bid_amount"]
[1726441311811,0.001644,59607.0,59606.0,1.36951318]
[1726441312562,0.001644,59607.0,59606.0,1.49641318]
[1726441312797,0.001644,59607.0,59606.0,1.66765339]
[1726441313031,0.001644,59607.0,59606.0,1.66565339]
[1726441313757,0.001644,59607.0,59606.0,1.66465339]
[1726441314199,0.001644,59607.0,59606.0,1.67865339]
[1726441314474,0.002644,59607.0,59606.0,1.69265339]
[1726441314941,0.002644,59607.0,59606.0,1.70665339]
[1726441315414,0.002644,59607.0,59606.0,1.74032339]
[1726441319076,0.002644,59607.0,59606.0,0.042]
[1726441319304,0.50594,59607.0,59606.0,0.042]
[1726441319550,0.841471,59607.0,59606.0,0.042]
[1726441320065,0.85646726,59607.0,59606.0,0.042]
[1726441320303,0.88280605,59607.0,59606.0,0.014]
[1726441320539,0.167781,59602.0,59597.0,0.34067721]
[1726441320787,0.167781,59602.0,59598.0,0.17124021]
[1726441321548,0.167781,59602.0,59598.0,0.33902921]
[1726441322234,0.167781,59602.0,59598.0,0.17124021]
[1726441322459,0.335553,59603.0,59598.0,0.17124021]
[1726441322460,0.167784,59601.0,59598.0,0.17124021]
[1726441322681,0.167784,59601.0,59599.0,0.17124021]
[1726441323144,0.19412323,59601.0,59599.0,0.17124021]
[1726441324083,0.19512323,59601.0,59599.0,0.19124021]
[1726441324558,0.02733923,59601.0,59599.0,0.19124021]
[1726441325989,0.19512223,59601.0,59599.0,0.19124021]
[1726441326221,0.02733923,59601.0,59599.0,0.19124021]
[1726441326455,0.02733923,59601.0,59600.0,0.05815871]
[1726441326647,0.19512123,59601.0,59600.0,0.05815871]
[1726441327564,0.19412123,59601.0,59600.0,0.05815871]
[1726441327795,0.02733923,59601.0,59600.0,0.06715871]
[1726441328253,0.02733923,59601.0,59600.0,0.07815871]
[1726441328742,0.19512123,59601.0,59600.0,0.07815871]
[1726441329227,0.19512123,59601.0,59600.0,0.02]
[1726441329228,0.86624923,59601.0,59600.0,0.02]
[1726441329458,0.53068523,59601.0,59600.0,0.02]
[1726441330156,0.504346,59601.0,59600.0,0.02]
[1726441330388,0.83991,59601.0,59600.0,0.02]
[1726441332873,0.86624994,59601.0,59600.0,0.02]
[1726441334697,0.87620723,59601.0,59600.0,0.02]
[1726441335360,1.21177123,59601.0,59600.0,0.02]
[1726441336011,1.18543129,59601.0,59600.0,0.02]
[1726441338278,0.83991,59601.0,59600.0,0.02]
[1726441338493,0.83991,59601.0,59600.0,0.021644]
[1726441341245,0.504346,59601.0,59600.0,0.021644]
[1726441341472,0.83991,59601.0,59600.0,0.021644]
[1726441341723,1.610438,59601.0,59600.0,0.021644]
[1726441341951,1.505574,59601.0,59600.0,0.021644]
[1726441342192,1.841138,59601.0,59600.0,0.021644]
[1726441342438,1.505574,59601.0,59600.0,0.021644]
[1726441342716,1.505574,59601.0,59600.0,0.010644]
[1726441342972,1.504574,59601.0,59600.0,0.005644]
[1726441343221,1.507574,59601.0,59600.0,0.001644]
[1726441343446,1.510574,59601.0,59600.0,0.001644]
[1726441343685,1.507574,59601.0,59600.0,0.001644]
[1726441345081,1.52814086,59601.0,59600.0,0.001644]
[1726441346002,1.55448308,59601.0,59600.0,0.001644]
[1726441347689,1.89004708,59601.0,59600.0,0.001644]
[1726441347886,1.52814086,59601.0,59600.0,0.001644]
[1726441351174,1.55448305,59601.0,59600.0,0.001644]
[1726441356943,1.89004705,59601.0,59600.0,0.001644]
[1726441356946,1.92004705,59601.0,59600.0,0.001644]
[1726441357212,1.92004705,59601.0,59595.0,11.95664816]
[1726441357213,0.320796,59596.0,59595.0,11.95664816]
[1726441357471,0.320796,59596.0,59595.0,11.69224816]
[1726441357472,5.63093595,59596.0,59595.0,11.69224816]
[1726441357718,5.63093595,59596.0,59595.0,11.53964816]
[1726441357719,6.18939995,59596.0,59595.0,11.53964816]
[1726441357960,6.14194345,59596.0,59595.0,11.53964816]
[1726441358198,6.24064345,59596.0,59595.0,11.43814816]
[1726441358437,6.15094345,59596.0,59595.0,11.24104816]
[1726441358689,4.04082945,59596.0,59595.0,11.24204816]
[1726441359442,3.53544677,59596.0,59595.0,11.24104816]
[1726441360171,3.56179581,59596.0,59595.0,11.24104816]
[1726441360400,3.53974809,59596.0,59595.0,11.24004816]
[1726441360852,3.55374809,59596.0,59595.0,11.24004816]
[1726441361089,3.53974809,59596.0,59595.0,11.24004816]
[1726441361313,3.56774524,59596.0,59595.0,11.24004816]
[1726441361545,3.56773404,59596.0,59595.0,11.24004816]
[1726441361797,3.92756044,59596.0,59595.0,11.24004816]
[1726441362046,3.98882084,59596.0,59595.0,11.24004816]
[1726441362271,4.00282084,59596.0,59595.0,11.24004816]
[1726441362957,4.01682084,59596.0,59595.0,11.24004816]
[1726441363223,6.27808284,59596.0,59595.0,11.24004816]
[1726441363473,5.60852954,59596.0,59595.0,11.24004816]
[1726441365566,5.5821805,59596.0,59595.0,11.24004816]
[1726441365899,5.5821805,59596.0,59595.0,11.21728266]
[1726441366647,6.2821805,59596.0,59595.0,11.21728266]
[1726441367383,6.2069194,59596.0,59595.0,11.21728266]
[1726441367631,6.2821805,59596.0,59595.0,11.21728266]
[1726441368355,6.3072666,59596.0,59595.0,11.21728266]
[1726441368841,4.33328058,59596.0,59595.0,11.21728266]
[1726441370281,4.4348568,59596.0,59595.0,11.21728266]
[1726441370757,4.3596299,59596.0,59595.0,11.21728266]
[1726441371001,3.92563719,59596.0,59595.0,11.21728266]
[1726441371245,3.7870389,59596.0,59595.0,11.21728266]
[1726441371955,1.59072472,59596.0,59595.0,11.21728266]
[1726441372428,1.57579622,59596.0,59595.0,11.21728266]
[1726441372653,2.31612622,59596.0,59595.0,11.21728266]
[1726441372875,2.30212622,59596.0,59595.0,11.21728266]
[1726441373106,2.66656726,59596.0,59595.0,11.21828266]
[1726441373336,2.63856726,59596.0,59595.0,11.21828266]
[1726441373698,2.84770444,59596.0,59595.0,11.21928266]
[1726441373805,2.87770444,59596.0,59595.0,11.21828266]
[1726441374266,2.88770444,59596.0,59595.0,11.21928266]
[1726441374491,2.86170444,59596.0,59595.0,11.21728266]
[1726441374713,2.87370444,59596.0,59595.0,11.21928266]
[1726441374941,2.87470444,59596.0,59595.0,11.21828266]
[1726441375380,2.87370444,59596.0,59595.0,11.21828266]
[1726441375629,2.85835512,59596.0,59595.0,11.21928266]
[1726441376316,2.85999912,59596.0,59595.0,11.21928266]
[1726441377248,2.22844912,59596.0,59595.0,11.21928266]
[1726441378945,2.25479705,59596.0,59595.0,11.21928266]
[1726441379616,2.14401705,59596.0,59595.0,11.21928266]
[1726441380061,1.58328787,59596.0,59595.0,11.21928266]
[1726441380789,1.54208767,59596.0,59595.0,11.21928266]
[1726441381511,1.87767967,59596.0,59595.0,11.21928266]
[1726441381974,1.54208767,59596.0,59595.0,11.21928266]
[1726441383345,1.87767967,59596.0,59595.0,11.21928266]
[1726441384691,1.54208767,59596.0,59595.0,11.21928266]
[1726441385144,1.87767967,59596.0,59595.0,11.21928266]
[1726441385622,2.19227206,59596.0,59595.0,11.21928266]
[1726441385865,2.16592413,59596.0,59595.0,11.21928266]
[1726441387024,2.37459813,59596.0,59595.0,11.21928266]
[1726441387791,2.28669813,59596.0,59595.0,11.21928266]
[1726441388034,2.06133213,59596.0,59595.0,11.21928266]
[1726441388282,3.24207053,59596.0,59595.0,11.21928266]
[1726441388512,3.24407053,59596.0,59595.0,11.21928266]
[1726441388731,3.19257053,59596.0,59595.0,11.21928266]
[1726441389053,2.63855313,59596.0,59595.0,11.21928266]
[1726441389386,2.50922413,59596.0,59595.0,11.21928266]
[1726441390342,2.63598294,59596.0,59595.0,11.21928266]
[1726441390588,2.35678899,59596.0,59595.0,11.21928266]
[1726441391254,2.35679134,59596.0,59595.0,11.21928266]
[1726441392422,2.74752288,59596.0,59595.0,11.21928266]
[1726441393124,2.74952288,59596.0,59595.0,11.21928266]
[1726441393781,4.97273241,59596.0,59595.0,11.21928266]
[1726441394019,4.86140241,59596.0,59595.0,11.21928266]
[1726441394710,4.17353474,59596.0,59595.0,11.21928266]
[1726441395648,4.14718713,59596.0,59595.0,11.21928266]
[1726441396856,4.08321413,59596.0,59595.0,11.21928266]
[1726441397072,3.12642013,59596.0,59595.0,11.21928266]
[1726441397683,3.10342013,59596.0,59595.0,11.21928266]
[1726441398154,3.12842013,59596.0,59595.0,11.21928266]
[1726441398387,3.17102529,59596.0,59595.0,11.21928266]
[1726441398802,3.12842013,59596.0,59595.0,11.21928266]
[1726441399006,3.15476862,59596.0,59595.0,11.21928266]
[1726441400285,3.30570196,59596.0,59595.0,11.21928266]
[1726441400520,3.15276862,59596.0,59595.0,11.21928266]
[1726441400947,3.19537257,59596.0,59595.0,11.21928266]
[1726441401151,3.34646986,59596.0,59595.0,11.21928266]
[1726441401358,3.19537257,59596.0,59595.0,11.21928266]
[1726441401797,3.30591958,59596.0,59595.0,11.21928266]
[1726441402205,3.15476862,59596.0,59595.0,11.21928266]
[1726441404422,4.33309862,59596.0,59595.0,11.21928266]
[1726441405470,3.71501862,59596.0,59595.0,11.21928266]
[1726441405994,3.64601572,59596.0,59595.0,11.21928266]
[1726441406167,3.08284572,59596.0,59595.0,11.21928266]
[1726441407004,3.08484572,59596.0,59595.0,11.21928266]
[1726441411433,3.08284572,59596.0,59595.0,11.21928266]
[1726441412550,3.08484572,59596.0,59595.0,11.21928266]
[1726441415447,3.50089472,59596.0,59595.0,11.21928266]
[1726441416151,3.32849472,59596.0,59595.0,11.21928266]
[1726441418171,3.4798395,59596.0,59595.0,11.08504266]
[1726441418409,3.5398395,59596.0,59595.0,11.05747094]
[1726441418626,4.42408672,59596.0,59595.0,10.38709738]
[1726441418852,4.39773823,59596.0,59595.0,10.21929738]
[1726441419297,4.38673823,59596.0,59595.0,10.20842927]
[1726441419516,4.40073823,59596.0,59595.0,10.20942927]
[1726441419732,4.37873823,59596.0,59595.0,10.17486927]
[1726441419957,4.37873823,59596.0,59595.0,10.14130927]
[1726441420196,4.37873823,59596.0,59595.0,10.04062927]
[1726441420702,5.23172023,59596.0,59595.0,9.27887279]
[1726441420956,5.14672015,59596.0,59595.0,9.07399594]
[1726441421183,5.27485443,59596.0,59595.0,9.07399594]
[1726441421647,5.26085443,59596.0,59595.0,9.07299594]
[1726441421896,5.3012068,59596.0,59595.0,8.97231594]
[1726441422139,5.34036084,59596.0,59595.0,8.90419594]
[1726441422413,4.97563464,59596.0,59595.0,8.90419594]
[1726441422642,4.98963464,59596.0,59595.0,8.90419594]
[1726441422867,5.29722664,59596.0,59595.0,8.90419594]
[1726441423098,5.32522664,59596.0,59595.0,8.90419594]
[1726441423324,4.78034632,59596.0,59595.0,8.90419594]
[1726441423590,4.96163464,59596.0,59595.0,8.90419594]
[1726441424054,4.97563464,59596.0,59595.0,8.80351594]
[1726441424057,4.97563464,59596.0,59595.0,6.22091735]
[1726441424294,4.97563464,59596.0,59595.0,6.18735735]
[1726441424547,5.31122664,59596.0,59595.0,6.18735735]
[1726441424777,4.61122664,59596.0,59595.0,6.15379735]
[1726441425015,4.61122664,59596.0,59595.0,6.08667735]
[1726441425261,4.62522664,59596.0,59595.0,6.01454735]
[1726441425484,4.62522664,59596.0,59595.0,5.98434735]
[1726441425713,4.57087427,59596.0,59595.0,5.98434735]
[1726441425942,4.66746427,59596.0,59595.0,5.19525325]
[1726441426206,4.8326293,59596.0,59595.0,5.19525325]
[1726441426436,4.8326293,59596.0,59595.0,5.16558325]
[1726441426675,5.35346427,59596.0,59595.0,4.81388325]
[1726441426896,5.36746427,59596.0,59595.0,4.54099075]
[1726441427119,5.38146427,59596.0,59595.0,4.44022177]
[1726441427345,5.36746427,59596.0,59595.0,4.44022177]
[1726441427572,5.36746427,59596.0,59595.0,4.43197441]
[1726441427817,5.38146427,59596.0,59595.0,4.10914441]
[1726441428320,5.36746427,59596.0,59595.0,3.62755797]
[1726441428560,5.36746427,59596.0,59595.0,3.13017055]
[1726441428827,5.41112691,59596.0,59595.0,2.88845617]
[1726441429076,5.37981914,59596.0,59595.0,2.09680749]
[1726441429326,9.41756941,59596.0,59595.0,1.98319749]
[1726441429547,9.41756941,59596.0,59595.0,1.97195649]
[1726441429548,8.21652589,59596.0,59595.0,1.97195649]
[1726441429776,8.21652589,59596.0,59595.0,1.88243649]
[1726441430002,8.23052589,59596.0,59595.0,1.36091005]
[1726441430225,8.21652589,59596.0,59595.0,1.36091005]
[1726441430514,8.21652589,59596.0,59567.0,0.001642]
[1726441430515,0.092,59574.0,59567.0,0.001642]
[1726441430747,5.31051211,59596.0,59555.0,1e-06]
[1726441430748,1.931545,59556.0,59555.0,1e-06]
[1726441431020,1.931545,59556.0,59552.0,2.31803374]
[1726441431021,1.57487532,59553.0,59552.0,2.31803374]
[1726441431243,2.69829798,59553.0,59552.0,2.31803374]
[1726441431468,3.44816572,59553.0,59552.0,2.31803374]
[1726441432387,3.61543395,59553.0,59552.0,1.87847254]
[1726441432646,4.89078865,59553.0,59552.0,1.87847254]
[1726441432888,4.89078865,59553.0,59552.0,1.70044217]
[1726441433113,4.56347756,59553.0,59552.0,1.11892407]
[1726441433361,4.56347756,59553.0,59552.0,0.72632831]
[1726441433362,5.96269195,59553.0,59552.0,0.72632831]
[1726441433592,5.96269195,59553.0,59552.0,0.65156885]
[1726441433827,5.97669195,59553.0,59552.0,0.10536185]
[1726441434298,6.11281774,59553.0,59552.0,0.07536185]
[1726441434771,6.11281774,59553.0,59503.0,0.25187859]
[1726441434772,0.03,59520.0,59503.0,0.25187859]
[1726441434991,0.03,59520.0,59500.0,1.26706528]
[1726441434992,0.33605,59515.0,59501.0,0.16597164]
[1726441435261,0.1935925,59519.0,59502.0,0.19528832]
[1726441435475,0.01468855,59514.0,59507.0,0.19528832]
[1726441435718,0.17890395,59519.0,59503.0,0.33088952]
[1726441435719,0.17890395,59519.0,59513.0,0.19528832]
[1726441435934,0.17890395,59519.0,59518.0,0.19528832]
[1726441435935,0.34691695,59519.0,59518.0,0.19528832]
[1726441436170,0.24161695,59519.0,59518.0,0.19528832]
[1726441436393,0.014,59520.0,59518.0,0.19528832]
[1726441436640,0.014,59520.0,59506.0,0.336097]
[1726441436641,0.16801,59521.0,59509.0,0.16804]
[1726441436908,0.16801,59521.0,59519.0,0.19028832]
[1726441437139,0.168,59524.0,59519.0,0.17272832]
[1726441437601,1.1082085,59532.0,59519.0,0.16172832]
[1726441437602,0.0263786,59523.0,59519.0,0.16172832]
[1726441437833,0.1943826,59523.0,59519.0,0.29162832]
[1726441438259,0.006,59521.0,59519.0,0.29162832]
[1726441438487,0.0263786,59523.0,59519.0,0.29162832]
[1726441438709,0.0303786,59523.0,59519.0,0.29162832]
[1726441438946,0.0263786,59523.0,59519.0,0.29162832]
[1726441439923,0.0303786,59523.0,59519.0,0.29162832]
[1726441440371,0.1303786,59523.0,59519.0,0.29162832]
[1726441440853,0.16801,59520.0,59519.0,0.1299]
[1726441441096,0.168039,59510.0,59503.0,0.19528832]
[1726441441336,0.0283786,59523.0,59500.0,1.26706528]
[1726441441337,0.03,59515.0,59500.0,1.26706528]
[1726441441590,0.6039398,59501.0,59500.0,1.26706528]
[1726441442041,1.3164846,59501.0,59500.0,1.26706528]
[1726441442258,0.2812776,59501.0,59500.0,1.26706528]
[1726441442504,0.3495938,59501.0,59500.0,1.26206528]
[1726441442778,3.1188518,59501.0,59500.0,1.15676528]
[1726441443004,1.278157,59496.0,59495.0,97.77832224]
[1726441443293,3.06480377,59496.0,59495.0,95.98343359]
[1726441443527,3.06480377,59496.0,59495.0,95.57866327]
[1726441443528,4.48387365,59496.0,59495.0,95.57866327]
[1726441443817,5.34002605,59496.0,59495.0,86.43431062]
[1726441444041,5.52965058,59496.0,59495.0,81.00667226]
[1726441444306,9.65919104,59496.0,59495.0,80.87779979]
[1726441444517,4.43509492,59496.0,59495.0,75.79472294]
[1726441444738,4.70251107,59496.0,59495.0,75.79472294]
[1726441444959,4.70251107,59496.0,59495.0,75.77773517]
[1726441445181,4.36635407,59496.0,59495.0,75.77773517]
[1726441445411,4.73158128,59496.0,59495.0,75.77773517]
[1726441445658,4.74558128,59496.0,59495.0,75.76084784]
[1726441445903,4.75958128,59496.0,59495.0,75.76084784]
[1726441446149,4.61286128,59496.0,59495.0,75.67564784]
[1726441446385,6.68946928,59496.0,59495.0,75.67564784]
[1726441446853,6.68946928,59496.0,59495.0,75.67646984]
[1726441447096,6.67546928,59496.0,59495.0,75.67646984]
[1726441447374,9.26033214,59496.0,59495.0,74.45614354]
[1726441447634,9.39650214,59496.0,59495.0,73.03558772]
[1726441447853,9.40891181,59496.0,59495.0,71.47441972]
[1726441448098,8.89142331,59496.0,59495.0,70.12563951]
[1726441448343,7.3319166,59496.0,59495.0,68.86407684]
[1726441448592,7.3319166,59496.0,59495.0,67.08622654]
[1726441448593,8.93598687,59496.0,59495.0,67.08622654]
[1726441448807,7.28766837,59496.0,59495.0,67.08622654]
[1726441449023,7.31566837,59496.0,59495.0,67.08622654]
[1726441449252,7.35873977,59496.0,59495.0,67.08622654]
[1726441449475,7.34473977,59496.0,59495.0,67.08622654]
[1726441449743,7.37273977,59496.0,59495.0,67.08622654]
[1726441449979,7.31566837,59496.0,59495.0,66.35828069]
[1726441450211,7.30166837,59496.0,59495.0,66.02109413]
[1726441450684,7.31566837,59496.0,59495.0,66.02109413]
[1726441451182,7.2334453,59496.0,59495.0,66.02109413]
[1726441451429,7.26707163,59496.0,59495.0,65.99671413]
[1726441451656,6.34409168,59496.0,59495.0,65.99671413]
[1726441451906,6.33009168,59496.0,59495.0,65.99671413]
[1726441452382,6.33009168,59496.0,59495.0,65.98766003]
[1726441452383,5.59775591,59496.0,59495.0,65.98766003]
[1726441452597,5.56975591,59496.0,59495.0,65.98766003]
[1726441452840,5.55788791,59496.0,59495.0,65.98766003]
[1726441453304,5.54388791,59496.0,59495.0,65.98766003]
[1726441453526,4.22441491,59496.0,59495.0,65.98766003]
[1726441453743,3.53841491,59496.0,59495.0,65.98766003]
[1726441453965,3.50664291,59496.0,59495.0,65.98766003]
[1726441454185,3.37178791,59496.0,59495.0,65.98766003]
[1726441454406,3.28289991,59496.0,59495.0,65.98766003]
[1726441454643,3.17327691,59496.0,59495.0,65.98766003]
[1726441454918,3.06025491,59496.0,59495.0,65.98766003]
[1726441455377,3.08825491,59496.0,59495.0,65.98766003]
[1726441455590,3.06184524,59496.0,59495.0,65.98766003]
[1726441455817,3.04532324,59496.0,59495.0,65.98766003]
[1726441456038,3.03132324,59496.0,59495.0,65.98766003]
[1726441456291,2.81231124,59496.0,59495.0,65.98766003]
[1726441456534,2.79789919,59496.0,59495.0,65.98766003]
[1726441457506,2.79989919,59496.0,59495.0,65.98766003]
[1726441457729,2.88589919,59496.0,59495.0,65.98766003]
[1726441458426,2.89989919,59496.0,59495.0,63.53766003]
[1726441458648,3.34597619,59496.0,59495.0,63.53180262]
[1726441458892,3.35837391,59496.0,59495.0,63.53180262]
[1726441459114,3.37237391,59496.0,59495.0,63.53180262]
[1726441459563,3.02221691,59496.0,59495.0,63.53180262]
[1726441459877,2.92429691,59496.0,59495.0,63.53180262]
[1726441460110,2.17613991,59496.0,59495.0,63.53180262]
[1726441460324,1.29613991,59496.0,59495.0,63.53180262]
[1726441460533,0.62179719,59496.0,59495.0,63.53180262]
[1726441460774,0.60779719,59496.0,59495.0,63.53180262]
[1726441461003,0.96021678,59496.0,59495.0,63.53180262]
[1726441461233,0.93221678,59496.0,59495.0,63.53180262]
[1726441461498,0.94596458,59496.0,59495.0,63.53180262]
[1726441461940,0.92529678,59496.0,59495.0,63.53180262]
[1726441462144,0.93929678,59496.0,59495.0,63.53180262]
[1726441462564,19.77813878,59496.0,59495.0,63.53180262]
[1726441462824,19.61073878,59496.0,59495.0,63.53180262]
[1726441463025,19.96012231,59496.0,59495.0,63.53180262]
[1726441468155,18.79392653,59496.0,59495.0,63.53180262]
[1726441468370,18.02732653,59496.0,59495.0,63.53180262]
[1726441468597,17.85302653,59496.0,59495.0,63.53180262]
[1726441469054,17.85302653,59496.0,59495.0,63.84921547]
[1726441470218,17.85302653,59496.0,59495.0,63.85121547]
[1726441470437,17.85902653,59496.0,59495.0,63.84921547]
[1726441470661,17.86167253,59496.0,59495.0,64.19053668]
[1726441470881,17.85567253,59496.0,59495.0,64.19053668]
[1726441471138,17.85667253,59496.0,59495.0,64.19353668]
[1726441471408,17.85667253,59496.0,59495.0,64.89953068]
[1726441471409,17.88306107,59496.0,59495.0,64.89953068]
[1726441471668,17.88306107,59496.0,59495.0,64.56136868]
[1726441471669,17.88206107,59496.0,59495.0,64.56136868]
[1726441471955,17.88306107,59496.0,59495.0,64.56936868]
[1726441472181,17.85667253,59496.0,59495.0,65.26869268]
[1726441472432,17.1893497,59496.0,59495.0,65.33069268]
[1726441472677,17.1893497,59496.0,59495.0,65.62510553]
[1726441473169,16.99310867,59496.0,59495.0,65.62510553]
[1726441473412,16.99310867,59496.0,59495.0,65.90240553]
[1726441473413,16.97341179,59496.0,59495.0,65.90240553]
[1726441473661,16.97241179,59496.0,59495.0,65.94523341]
[1726441473903,16.97341179,59496.0,59495.0,65.95323341]
[1726441474151,16.97341179,59496.0,59495.0,65.94523341]
[1726441474625,16.97441179,59496.0,59495.0,65.66482056]
[1726441474853,16.77431179,59496.0,59495.0,65.60899268]
[1726441475337,16.77331179,59496.0,59495.0,65.59999268]
[1726441475570,16.77531179,59496.0,59495.0,65.62699268]
[1726441476099,16.77431179,59496.0,59495.0,65.61399268]
[1726441476346,16.77431179,59496.0,59495.0,65.62699268]
[1726441476347,16.77531179,59496.0,59495.0,65.62699268]
[1726441476825,16.77431179,59496.0,59495.0,65.61299268]
[1726441477121,16.77431179,59496.0,59495.0,63.57847262]
[1726441477319,17.29768633,59496.0,59495.0,63.55880262]
[1726441477562,16.96152544,59496.0,59495.0,63.55880262]
[1726441477797,17.29668244,59496.0,59495.0,63.54580262]
[1726441478042,17.3230713,59496.0,59495.0,63.54580262]
[1726441478283,17.3230713,59496.0,59495.0,63.58080262]
[1726441478520,17.68725157,59496.0,59495.0,63.56680262]
[1726441478761,18.02340857,59496.0,59495.0,63.54380262]
[1726441479006,18.48956557,59496.0,59495.0,63.54880262]
[1726441479252,18.80786557,59496.0,59495.0,63.54880262]
[1726441479498,18.47370857,59496.0,59495.0,63.54580262]
[1726441479742,18.4446853,59496.0,59495.0,63.54580262]
[1726441480229,18.4126853,59496.0,59495.0,63.54580262]
[1726441480714,18.4186853,59496.0,59495.0,63.54580262]
[1726441481246,18.4186853,59496.0,59495.0,63.53180262]
[1726441481503,21.36028533,59496.0,59495.0,60.75841952]
[1726441481751,21.56011776,59496.0,59495.0,60.19012186]
[1726441481996,20.59859037,59496.0,59495.0,60.18626186]
[1726441482288,20.59859037,59496.0,59495.0,60.18726186]
[1726441482289,20.28639437,59496.0,59495.0,60.18726186]
[1726441482493,19.58239437,59496.0,59495.0,60.18626186]
[1726441482730,19.59639437,59496.0,59495.0,60.18826186]
[1726441482979,19.59639437,59496.0,59495.0,60.18726186]
[1726441483223,19.32829437,59496.0,59495.0,60.18626186]
[1726441483518,19.32829437,59496.0,59495.0,60.18726186]
[1726441483727,19.34229437,59496.0,59495.0,60.18726186]
[1726441484212,19.34429437,59496.0,59495.0,60.18726186]
[1726441484451,19.35829437,59496.0,59495.0,60.18726186]
[1726441484681,19.34229437,59496.0,59495.0,60.18726186]
[1726441484920,19.42374337,59496.0,59495.0,60.18726186]
[1726441485150,19.42574337,59496.0,59495.0,60.18726186]
[1726441485394,19.41174337,59496.0,59495.0,60.18626186]
[1726441485866,19.39935451,59496.0,59495.0,60.18626186]
[1726441486113,19.38535451,59496.0,59495.0,60.18626186]
[1726441486354,19.72151151,59496.0,59495.0,60.18626186]
[1726441486585,19.73551151,59496.0,59495.0,60.18626186]
[1726441487290,19.39935451,59496.0,59495.0,60.18626186]
[1726441487532,19.38128779,59496.0,59495.0,60.18626186]
[1726441487787,19.39703127,59496.0,59495.0,60.18626186]
[1726441488050,19.39903127,59496.0,59495.0,60.18626186]
[1726441488519,19.73518827,59496.0,59495.0,60.18626186]
[1726441488797,19.39903127,59496.0,59495.0,60.18626186]
[1726441490441,19.76158693,59496.0,59495.0,60.18626186]
[1726441490695,19.42542993,59496.0,59495.0,60.18626186]
[1726441491181,19.76158693,59496.0,59495.0,60.18626186]
[1726441491653,19.42542993,59496.0,59495.0,60.18626186]
[1726441493091,19.42542993,59496.0,59495.0,60.18630218]
[1726441493524,19.76158693,59496.0,59495.0,60.18630218]
[1726441494410,19.74384345,59496.0,59495.0,60.18630218]
[1726441494629,19.76157143,59496.0,59495.0,60.18630218]
[1726441495068,20.43517277,59496.0,59495.0,60.18630218]
[1726441495759,20.43517277,59496.0,59495.0,59.48636335]
[1726441495760,20.59159025,59496.0,59495.0,59.48636335]
[1726441495995,20.82186341,59496.0,59495.0,59.48636335]
[1726441496233,20.94641148,59496.0,59495.0,59.48636335]
[1726441496480,21.77280348,59496.0,59495.0,59.48636335]
[1726441496718,21.77280348,59496.0,59495.0,59.4351805]
[1726441496719,21.66582227,59496.0,59495.0,59.4351805]
[1726441496955,21.73543133,59496.0,59495.0,59.10447547]
[1726441497173,21.77655311,59496.0,59495.0,59.10447547]
[1726441497872,21.8334668,59496.0,59495.0,58.96139547]
[1726441498120,21.8474668,59496.0,59495.0,58.23590947]
[1726441498391,21.8474668,59496.0,59495.0,57.76582767]
[1726441498392,21.79252576,59496.0,59495.0,57.76582767]
[1726441498621,21.82052576,59496.0,59495.0,56.55800198]
[1726441498866,21.82052576,59496.0,59495.0,55.71554186]
[1726441499105,21.7509167,59496.0,59495.0,55.37837471]
[1726441499345,21.7509167,59496.0,59495.0,54.70400652]
[1726441499346,21.7649167,59496.0,59495.0,54.70400652]
[1726441499806,21.7649167,59496.0,59495.0,54.67039052]
[1726441500303,21.7649167,59496.0,59495.0,54.31479349]
[1726441500521,21.81696742,59496.0,59495.0,49.40778792]
[1726441500764,22.62222934,59496.0,59495.0,47.75398555]
[1726441501002,22.84779286,59496.0,59495.0,46.6751279]
[1726441501257,22.7514282,59496.0,59495.0,45.66350225]
[1726441501531,22.79574214,59496.0,59495.0,44.8698637]
[1726441501756,22.78174214,59496.0,59495.0,44.0202977]
[1726441501969,22.799309,59496.0,59495.0,43.9530657]
[1726441502188,22.94910572,59496.0,59495.0,43.9530657]
[1726441502424,22.799309,59496.0,59495.0,43.9530657]
[1726441502651,22.73432506,59496.0,59495.0,43.9530657]
[1726441502914,22.74832506,59496.0,59495.0,43.7849857]
[1726441503148,22.792639,59496.0,59495.0,43.7849857]
[1726441503378,22.93141304,59496.0,59495.0,43.57509287]
[1726441503840,22.829639,59496.0,59495.0,43.40701287]
[1726441504069,22.78532506,59496.0,59495.0,43.40701287]
[1726441504740,22.81225648,59496.0,59495.0,43.27254887]
[1726441504959,22.81225648,59496.0,59495.0,43.23893287]
[1726441505168,22.78425648,59496.0,59495.0,43.23893287]
[1726441505643,22.79825648,59496.0,59495.0,43.23893287]
[1726441505859,22.77525648,59496.0,59495.0,43.23893287]
[1726441506399,22.88598088,59496.0,59495.0,42.40453004]
[1726441506612,22.82707946,59496.0,59495.0,42.20828901]
[1726441506832,22.82707946,59496.0,59495.0,42.04020901]
[1726441507047,22.79674225,59496.0,59495.0,38.73742601]
[1726441507286,22.79674225,59496.0,59495.0,37.27864474]
[1726441507287,22.78900547,59496.0,59495.0,37.27864474]
[1726441507509,22.86936109,59496.0,59495.0,36.59424427]
[1726441507720,22.89576912,59496.0,59495.0,36.56062827]
[1726441508015,22.89576912,59496.0,59495.0,35.75177116]
[1726441508016,22.77109956,59496.0,59495.0,35.75177116]
[1726441508477,22.78509956,59496.0,59495.0,35.75177116]
[1726441508926,22.77109956,59496.0,59495.0,35.68453916]
[1726441509142,22.78509956,59496.0,59495.0,35.65092316]
[1726441509363,22.75709956,59496.0,59495.0,35.58369116]
[1726441509800,22.78509956,59496.0,59495.0,35.41561116]
[1726441510037,22.82339874,59496.0,59495.0,35.41561116]
[1726441510496,23.17339874,59496.0,59495.0,35.41561116]
[1726441510957,23.15039874,59496.0,59495.0,35.41561116]
[1726441511185,23.13639874,59496.0,59495.0,35.41561116]
[1726441511420,23.16439874,59496.0,59495.0,35.41561116]
[1726441512117,21.80755056,59496.0,59495.0,35.41561116]
[1726441512353,21.87138212,59496.0,59495.0,35.41561116]
[1726441512569,21.83555056,59496.0,59495.0,35.41561116]
[1726441512816,21.82155056,59496.0,59495.0,35.41561116]
[1726441513085,21.83555056,59496.0,59495.0,35.41561116]
[1726441513331,21.94455056,59496.0,59495.0,35.41561116]
[1726441513826,21.91955056,59496.0,59495.0,35.41561116]
[1726441514343,21.80755056,59496.0,59495.0,35.41561116]
[1726441514557,20.61640692,59496.0,59495.0,35.60021116]
[1726441514806,19.51050292,59496.0,59495.0,35.60021116]
[1726441515040,19.33338468,59496.0,59495.0,35.60021116]
[1726441515279,19.47982468,59496.0,59495.0,35.41561116]
[1726441515764,19.80357365,59496.0,59495.0,35.41561116]
[1726441516001,19.88957365,59496.0,59495.0,35.41561116]
[1726441516471,20.61510565,59496.0,59495.0,35.41561116]
[1726441516720,20.66025865,59496.0,59495.0,35.41561116]
[1726441516936,20.57169265,59496.0,59495.0,35.41561116]
[1726441517383,20.58569265,59496.0,59495.0,35.41561116]
[1726441517631,20.06424165,59496.0,59495.0,35.73601116]
[1726441517846,19.36424165,59496.0,59495.0,35.73601116]
[1726441518056,19.99715565,59496.0,59495.0,35.73601116]